[Event "*** Titled Tuesday Blitz"]
[Site "Chess.com"]
[Date "2020.04.07"]
[Round "4"]
[White "esteban062000"]
[Black "RojonR"]
[Result "0-1"]
[WhiteElo "2129"]
[BlackElo "2393"]
[TimeControl "180+1"]
[EndTime "13:40:37 PDT"]
[Termination "RojonR won by resignation"]

1. Nf3 {[%clk 0:03:00.9]} 1... d5 {[%clk 0:02:57]} 2. c4 {[%clk 0:02:58.7]} 2...
d4 {[%clk 0:02:56.4]} 3. b4 {[%clk 0:02:58.2]} 3... c5 {[%clk 0:02:55.7]} 4. b5
{[%clk 0:02:50.4]} 4... Nd7 {[%clk 0:02:36.7]} 5. g3 {[%clk 0:02:49.3]} 5... b6
{[%clk 0:02:29.5]} 6. Bg2 {[%clk 0:02:48.7]} 6... Bb7 {[%clk 0:02:29.4]} 7. O-O
{[%clk 0:02:48.8]} 7... e5 {[%clk 0:02:27.3]} 8. d3 {[%clk 0:02:48.9]} 8... Bd6
{[%clk 0:02:19.2]} 9. Nbd2 {[%clk 0:02:46.8]} 9... f5 {[%clk 0:02:04.2]} 10. e3
{[%clk 0:02:42.1]} 10... Ngf6 {[%clk 0:02:02.3]} 11. exd4 {[%clk 0:02:39.7]}
11... cxd4 {[%clk 0:02:02.1]} 12. Re1 {[%clk 0:02:32.6]} 12... O-O {[%clk
0:02:01.4]} 13. a4 {[%clk 0:02:10.6]} 13... Qc7 {[%clk 0:01:53]} 14. Ba3 {[%clk
0:02:06.5]} 14... Bxa3 {[%clk 0:01:50.7]} 15. Rxa3 {[%clk 0:02:07.4]} 15... Rae8
{[%clk 0:01:50.3]} 16. a5 {[%clk 0:02:00.6]} 16... Nc5 {[%clk 0:01:49.2]} 17.
axb6 {[%clk 0:01:58]} 17... axb6 {[%clk 0:01:50.1]} 18. Nb3 {[%clk 0:01:55.3]}
18... Nxd3 {[%clk 0:01:27.8]} 19. Qxd3 {[%clk 0:01:28.2]} 19... e4 {[%clk
0:01:26.8]} 20. Qd1 {[%clk 0:00:48.1]} 20... exf3 {[%clk 0:01:26.3]} 21. Rxe8
{[%clk 0:00:46.8]} 21... Rxe8 {[%clk 0:01:27.2]} 22. Bxf3 {[%clk 0:00:44.7]}
22... Bxf3 {[%clk 0:01:18.9]} 23. Qxf3 {[%clk 0:00:45.6]} 23... Qxc4 {[%clk
0:01:19.2]} 24. Ra8 {[%clk 0:00:32.3]} 24... Rxa8 {[%clk 0:01:08.3]} 25. Qxa8+
{[%clk 0:00:33.2]} 25... Kf7 {[%clk 0:01:08.3]} 26. Nd2 {[%clk 0:00:17.7]} 26...
Qxb5 {[%clk 0:00:46.7]} 27. Nf3 {[%clk 0:00:17.6]} 27... d3 {[%clk 0:00:26.9]}
28. Qb7+ {[%clk 0:00:16.7]} 28... Kg6 {[%clk 0:00:25.2]} 29. Nh4+ {[%clk
0:00:15]} 29... Kh6 {[%clk 0:00:25]} 30. Qf3 {[%clk 0:00:11.2]} 30... g6 {[%clk
0:00:20.4]} 31. Qf4+ {[%clk 0:00:10.1]} 31... Kg7 {[%clk 0:00:18.8]} 32. Qc7+
{[%clk 0:00:10.3]} 32... Qd7 {[%clk 0:00:18.3]} 33. Qxd7+ {[%clk 0:00:03.4]}
33... Nxd7 {[%clk 0:00:19.2]} 34. Nf3 {[%clk 0:00:04]} 34... Nc5 {[%clk
0:00:16.6]} 35. Kf1 {[%clk 0:00:04.9]} 35... Kf6 {[%clk 0:00:16]} 36. Kg1 {[%clk
0:00:05.8]} 0-1

[Event "*** Titled Tuesday Blitz"]
[Site "Chess.com"]
[Date "2020.04.07"]
[Round "4"]
[White "Storne89"]
[Black "Shivagami"]
[Result "1-0"]
[WhiteElo "2612"]
[BlackElo "2169"]
[TimeControl "180+1"]
[EndTime "13:40:38 PDT"]
[Termination "Storne89 won by resignation"]

1. e4 {[%clk 0:03:00.9]} 1... e5 {[%clk 0:02:56.6]} 2. Nf3 {[%clk 0:03:00.6]}
2... Nc6 {[%clk 0:02:56.8]} 3. Bc4 {[%clk 0:03:00.6]} 3... Nf6 {[%clk
0:02:56.1]} 4. d3 {[%clk 0:03:00.4]} 4... Be7 {[%clk 0:02:55.8]} 5. a4 {[%clk
0:02:59.6]} 5... O-O {[%clk 0:02:52.7]} 6. O-O {[%clk 0:02:59.9]} 6... d5 {[%clk
0:02:53]} 7. exd5 {[%clk 0:02:59.2]} 7... Nxd5 {[%clk 0:02:53.2]} 8. c3 {[%clk
0:02:52.7]} 8... Be6 {[%clk 0:02:48.4]} 9. Re1 {[%clk 0:02:47.2]} 9... Qd6
{[%clk 0:02:40.5]} 10. Nbd2 {[%clk 0:02:35.6]} 10... f5 {[%clk 0:02:38.9]} 11.
Bb5 {[%clk 0:02:30.6]} 11... Bf6 {[%clk 0:02:32.2]} 12. Nc4 {[%clk 0:02:29.6]}
12... Qc5 {[%clk 0:02:21.9]} 13. Bxc6 {[%clk 0:02:19.8]} 13... bxc6 {[%clk
0:02:18.2]} 14. Ncxe5 {[%clk 0:02:16]} 14... Rad8 {[%clk 0:01:59]} 15. d4 {[%clk
0:02:15]} 15... Qb6 {[%clk 0:01:56.8]} 16. a5 {[%clk 0:02:11.2]} 16... Qb7
{[%clk 0:01:53.4]} 17. Qa4 {[%clk 0:02:03.6]} 17... Ne7 {[%clk 0:01:42.8]} 18.
Nxc6 {[%clk 0:01:49.8]} 18... Bb3 {[%clk 0:00:43.6]} 19. Nxe7+ {[%clk
0:01:49.4]} 19... Bxe7 {[%clk 0:00:42.3]} 20. a6 {[%clk 0:01:49.8]} 20... Qb8
{[%clk 0:00:17.6]} 21. Qa5 {[%clk 0:01:30.3]} 21... Bd6 {[%clk 0:00:17.7]} 22.
Bg5 {[%clk 0:01:06.8]} 22... Rde8 {[%clk 0:00:16.4]} 23. Ne5 {[%clk 0:01:07]}
23... Bxe5 {[%clk 0:00:09.7]} 24. dxe5 {[%clk 0:01:03.9]} 24... h6 {[%clk
0:00:09.1]} 25. Be3 {[%clk 0:00:58.2]} 25... Re6 {[%clk 0:00:08.8]} 26. Qc5
{[%clk 0:00:51.8]} 26... Bc4 {[%clk 0:00:08]} 27. Qxa7 {[%clk 0:00:49.4]} 27...
Qxb2 {[%clk 0:00:07.8]} 28. Qb7 {[%clk 0:00:36.4]} 28... Qxc3 {[%clk 0:00:06.5]}
29. a7 {[%clk 0:00:31.1]} 29... f4 {[%clk 0:00:04.2]} 30. a8=Q {[%clk
0:00:30.9]} 30... Rxa8 {[%clk 0:00:01.6]} 31. Qxa8+ {[%clk 0:00:31.8]} 31... Kh7
{[%clk 0:00:02.5]} 32. Qe4+ {[%clk 0:00:30.8]} 1-0

[Event "*** Titled Tuesday Blitz"]
[Site "Chess.com"]
[Date "2020.04.07"]
[Round "4"]
[White "norwaytoadog"]
[Black "serhanberat_ozdemir"]
[Result "0-1"]
[WhiteElo "2278"]
[BlackElo "2469"]
[TimeControl "180+1"]
[EndTime "13:40:38 PDT"]
[Termination "serhanberat_ozdemir won on time"]

1. e4 {[%clk 0:03:00.7]} 1... c5 {[%clk 0:02:59.6]} 2. Nf3 {[%clk 0:03:00.3]}
2... e6 {[%clk 0:02:59.8]} 3. d4 {[%clk 0:03:00]} 3... cxd4 {[%clk 0:03:00.7]}
4. Nxd4 {[%clk 0:03:00]} 4... a6 {[%clk 0:03:00.3]} 5. c4 {[%clk 0:03:00.1]}
5... Nf6 {[%clk 0:02:58.4]} 6. Nc3 {[%clk 0:03:00.1]} 6... Qc7 {[%clk
0:02:58.7]} 7. Be2 {[%clk 0:02:56.6]} 7... Bb4 {[%clk 0:02:55.2]} 8. Nc2 {[%clk
0:02:56.1]} 8... Bxc3+ {[%clk 0:02:35.1]} 9. bxc3 {[%clk 0:02:55.7]} 9... Nxe4
{[%clk 0:02:33.9]} 10. Qd4 {[%clk 0:02:53.9]} 10... Nf6 {[%clk 0:02:33.9]} 11.
Bf4 {[%clk 0:02:41.4]} 11... Qa5 {[%clk 0:02:20.6]} 12. Bd6 {[%clk 0:02:14.9]}
12... Nc6 {[%clk 0:02:20]} 13. Qe3 {[%clk 0:01:58]} 13... Ne7 {[%clk 0:01:35.3]}
14. g4 {[%clk 0:01:30]} 14... Ned5 {[%clk 0:01:27.4]} 15. cxd5 {[%clk
0:00:57.2]} 15... Qxd5 {[%clk 0:01:28.3]} 16. Ba3 {[%clk 0:00:34.1]} 16... Qxh1+
{[%clk 0:01:24.9]} 17. Kd2 {[%clk 0:00:33.8]} 17... Qe4 {[%clk 0:01:17.8]} 18.
Qb6 {[%clk 0:00:25.1]} 18... h6 {[%clk 0:01:07.4]} 19. Ne3 {[%clk 0:00:24.1]}
19... Qa4 {[%clk 0:01:04.4]} 20. Bb4 {[%clk 0:00:16.2]} 20... Qc6 {[%clk
0:01:02.4]} 21. Qd4 {[%clk 0:00:12.3]} 21... d5 {[%clk 0:00:54.7]} 22. c4 {[%clk
0:00:11.1]} 22... Qa4 {[%clk 0:00:48]} 23. cxd5 {[%clk 0:00:10.7]} 23... a5
{[%clk 0:00:43.5]} 24. dxe6 {[%clk 0:00:09.8]} 24... Bxe6 {[%clk 0:00:41.1]} 25.
Bc3 {[%clk 0:00:05.9]} 25... Qxd4+ {[%clk 0:00:41.6]} 26. Bxd4 {[%clk 0:00:06]}
26... Rd8 {[%clk 0:00:42.3]} 27. Bb5+ {[%clk 0:00:05.7]} 27... Kf8 {[%clk
0:00:41.6]} 28. Kc3 {[%clk 0:00:03]} 28... Ne4+ {[%clk 0:00:41.8]} 29. Kd3
{[%clk 0:00:03.1]} 29... Nc5+ {[%clk 0:00:42.2]} 30. Kc3 {[%clk 0:00:02.6]}
30... Ne4+ {[%clk 0:00:39.9]} 31. Kd3 {[%clk 0:00:02.7]} 31... Nd6 {[%clk
0:00:40.6]} 32. a4 {[%clk 0:00:01.8]} 32... Nxb5 {[%clk 0:00:40]} 33. axb5
{[%clk 0:00:01.7]} 33... f6 {[%clk 0:00:40.7]} 34. Rxa5 {[%clk 0:00:01.4]} 34...
Kf7 {[%clk 0:00:41.6]} 35. Ra7 {[%clk 0:00:01.3]} 35... Rd7 {[%clk 0:00:42.3]}
0-1

[Event "*** Titled Tuesday Blitz"]
[Site "Chess.com"]
[Date "2020.04.07"]
[Round "4"]
[White "JakeCarlosBanawa"]
[Black "violetflower04"]
[Result "1-0"]
[WhiteElo "2429"]
[BlackElo "2189"]
[TimeControl "180+1"]
[EndTime "13:40:39 PDT"]
[Termination "JakeCarlosBanawa won by resignation"]

1. d4 {[%clk 0:03:00.9]} 1... Nf6 {[%clk 0:02:59.4]} 2. c4 {[%clk 0:03:00.7]}
2... e6 {[%clk 0:02:59.4]} 3. Nc3 {[%clk 0:03:00]} 3... Bb4 {[%clk 0:02:59.5]}
4. Nf3 {[%clk 0:02:59.6]} 4... d5 {[%clk 0:02:59]} 5. cxd5 {[%clk 0:02:58.8]}
5... exd5 {[%clk 0:02:58.1]} 6. Bg5 {[%clk 0:02:58.1]} 6... h6 {[%clk
0:02:56.9]} 7. Bxf6 {[%clk 0:02:50.7]} 7... Qxf6 {[%clk 0:02:57.8]} 8. e3 {[%clk
0:02:47.5]} 8... O-O {[%clk 0:02:38.6]} 9. Be2 {[%clk 0:02:43.9]} 9... Bf5
{[%clk 0:02:31.8]} 10. O-O {[%clk 0:02:41.8]} 10... c6 {[%clk 0:02:28.2]} 11.
Qb3 {[%clk 0:02:31.1]} 11... Qe7 {[%clk 0:02:18.6]} 12. a3 {[%clk 0:02:22.1]}
12... Bd6 {[%clk 0:02:16]} 13. Rfc1 {[%clk 0:02:15]} 13... Bc8 {[%clk
0:01:29.2]} 14. Na4 {[%clk 0:02:04.4]} 14... Nd7 {[%clk 0:01:27.4]} 15. Qc2
{[%clk 0:02:01.2]} 15... Nf6 {[%clk 0:01:26.2]} 16. b4 {[%clk 0:01:59.1]} 16...
Ne4 {[%clk 0:01:23.9]} 17. Nc5 {[%clk 0:01:58.6]} 17... Bf5 {[%clk 0:01:22.1]}
18. Bd3 {[%clk 0:01:55.9]} 18... Rfe8 {[%clk 0:01:13.5]} 19. Rab1 {[%clk
0:01:48.6]} 19... a6 {[%clk 0:00:58.6]} 20. a4 {[%clk 0:01:44.5]} 20... Bg4
{[%clk 0:00:53.4]} 21. Bxe4 {[%clk 0:00:53.6]} 21... dxe4 {[%clk 0:00:52.5]} 22.
Nd2 {[%clk 0:00:54.2]} 22... f5 {[%clk 0:00:30.8]} 23. b5 {[%clk 0:00:52.4]}
23... Qh4 {[%clk 0:00:28.6]} 24. Nf1 {[%clk 0:00:48.7]} 24... axb5 {[%clk
0:00:21.4]} 25. Nxb7 {[%clk 0:00:46.9]} 25... Bb8 {[%clk 0:00:17.2]} 26. Qxc6
{[%clk 0:00:43.9]} 26... Rf8 {[%clk 0:00:13.6]} 27. axb5 {[%clk 0:00:23.2]}
27... Ra2 {[%clk 0:00:12.4]} 28. Qc4+ {[%clk 0:00:21.4]} 28... Kh8 {[%clk
0:00:11.8]} 29. Qxa2 {[%clk 0:00:21.4]} 29... Bf3 {[%clk 0:00:09.1]} 30. Ng3
{[%clk 0:00:14.9]} 30... Bg4 {[%clk 0:00:06.4]} 31. Qa3 {[%clk 0:00:13.9]} 31...
Rg8 {[%clk 0:00:05.3]} 32. Qc3 {[%clk 0:00:13.3]} 32... f4 {[%clk 0:00:04.6]}
33. exf4 {[%clk 0:00:10.9]} 33... Bxf4 {[%clk 0:00:04]} 34. Re1 {[%clk
0:00:11.4]} 34... Bxg3 {[%clk 0:00:03.8]} 35. hxg3 {[%clk 0:00:10.3]} 35... Qg5
{[%clk 0:00:03.7]} 36. Nc5 {[%clk 0:00:10]} 1-0

[Event "*** Titled Tuesday Blitz"]
[Site "Chess.com"]
[Date "2020.04.07"]
[Round "4"]
[White "manubibi"]
[Black "AEMEffi"]
[Result "1-0"]
[WhiteElo "2550"]
[BlackElo "2343"]
[TimeControl "180+1"]
[EndTime "13:40:40 PDT"]
[Termination "manubibi won on time"]

1. e4 {[%clk 0:03:00.9]} 1... e5 {[%clk 0:02:59.4]} 2. Nf3 {[%clk 0:03:00]} 2...
Nc6 {[%clk 0:02:58.9]} 3. Bb5 {[%clk 0:02:58.4]} 3... Nf6 {[%clk 0:02:58.1]} 4.
d3 {[%clk 0:02:57.2]} 4... Bc5 {[%clk 0:02:56.5]} 5. c3 {[%clk 0:02:49.4]} 5...
d5 {[%clk 0:02:56]} 6. Nxe5 {[%clk 0:02:40.5]} 6... dxe4 {[%clk 0:01:54.2]} 7.
Nxc6 {[%clk 0:02:32.7]} 7... bxc6 {[%clk 0:01:51.5]} 8. Bxc6+ {[%clk 0:02:32.2]}
8... Bd7 {[%clk 0:01:52]} 9. Bxa8 {[%clk 0:02:31.2]} 9... Qxa8 {[%clk
0:01:52.9]} 10. d4 {[%clk 0:02:31.8]} 10... Bd6 {[%clk 0:01:52.2]} 11. Be3
{[%clk 0:02:21.1]} 11... O-O {[%clk 0:01:50.1]} 12. h3 {[%clk 0:02:20]} 12...
Nd5 {[%clk 0:01:46.4]} 13. O-O {[%clk 0:02:07.2]} 13... f5 {[%clk 0:01:41.6]}
14. c4 {[%clk 0:02:07.2]} 14... Nxe3 {[%clk 0:01:34.6]} 15. fxe3 {[%clk
0:02:08.1]} 15... Bg3 {[%clk 0:01:34.3]} 16. Nc3 {[%clk 0:02:07]} 16... Qe8
{[%clk 0:01:20.6]} 17. Ne2 {[%clk 0:02:05.4]} 17... Bh4 {[%clk 0:01:14.8]} 18.
Qd2 {[%clk 0:02:02.7]} 18... Be7 {[%clk 0:01:02.5]} 19. b4 {[%clk 0:01:58.5]}
19... g5 {[%clk 0:01:01.2]} 20. a4 {[%clk 0:01:47.2]} 20... h5 {[%clk
0:01:01.7]} 21. b5 {[%clk 0:01:36.3]} 21... h4 {[%clk 0:00:58.4]} 22. c5 {[%clk
0:01:32.2]} 22... f4 {[%clk 0:00:46.9]} 23. exf4 {[%clk 0:01:30.9]} 23... g4
{[%clk 0:00:47.5]} 24. Qe3 {[%clk 0:01:27.1]} 24... Qg6 {[%clk 0:00:43.1]} 25.
Kh2 {[%clk 0:01:18.3]} 25... Bf5 {[%clk 0:00:42.9]} 26. Ra3 {[%clk 0:01:15.2]}
26... Rf7 {[%clk 0:00:35.9]} 27. d5 {[%clk 0:01:14.1]} 27... Rg7 {[%clk
0:00:29.1]} 28. Rg1 {[%clk 0:01:03.9]} 28... g3+ {[%clk 0:00:24.9]} 29. Kh1
{[%clk 0:01:03.1]} 29... Bxc5 {[%clk 0:00:09.1]} 30. Qxc5 {[%clk 0:01:01.6]}
30... Bxh3 {[%clk 0:00:08.5]} 31. gxh3 {[%clk 0:01:00.9]} 31... Qf5 {[%clk
0:00:09.4]} 32. Rg2 {[%clk 0:00:50.2]} 32... Qxh3+ {[%clk 0:00:08.3]} 33. Kg1
{[%clk 0:00:50.4]} 33... Qg4 {[%clk 0:00:07.9]} 34. Qe3 {[%clk 0:00:48.8]} 34...
Qf5 {[%clk 0:00:07.4]} 35. Nxg3 {[%clk 0:00:46.8]} 35... Qxd5 {[%clk 0:00:06.7]}
36. Nxe4 {[%clk 0:00:44.5]} 36... Qd1+ {[%clk 0:00:03.4]} 37. Kh2 {[%clk
0:00:44.6]} 37... Rxg2+ {[%clk 0:00:03]} 38. Kxg2 {[%clk 0:00:45.5]} 38... Qg4+
{[%clk 0:00:02.7]} 39. Kh2 {[%clk 0:00:45.3]} 1-0

[Event "*** Titled Tuesday Blitz"]
[Site "Chess.com"]
[Date "2020.04.07"]
[Round "4"]
[White "jefferyx"]
[Black "Aygehovit1992"]
[Result "1-0"]
[WhiteElo "2906"]
[BlackElo "2727"]
[TimeControl "180+1"]
[EndTime "13:40:42 PDT"]
[Termination "jefferyx won on time"]

1. d4 {[%clk 0:03:00.9]} 1... Nf6 {[%clk 0:02:58.1]} 2. c4 {[%clk 0:03:01.2]}
2... g6 {[%clk 0:02:57.9]} 3. Nc3 {[%clk 0:03:01.2]} 3... Bg7 {[%clk 0:02:58.1]}
4. e4 {[%clk 0:03:00.9]} 4... d6 {[%clk 0:02:58.5]} 5. Be2 {[%clk 0:03:01.4]}
5... O-O {[%clk 0:02:58]} 6. Be3 {[%clk 0:03:02.1]} 6... Nc6 {[%clk 0:02:57.7]}
7. d5 {[%clk 0:02:56]} 7... Ne5 {[%clk 0:02:57.5]} 8. h3 {[%clk 0:02:36.6]} 8...
e6 {[%clk 0:02:57.3]} 9. f4 {[%clk 0:02:36.8]} 9... Ned7 {[%clk 0:02:56]} 10.
dxe6 {[%clk 0:02:36.7]} 10... fxe6 {[%clk 0:02:54.5]} 11. Bf3 {[%clk 0:02:36.7]}
11... e5 {[%clk 0:02:42.8]} 12. f5 {[%clk 0:02:03.4]} 12... gxf5 {[%clk
0:02:33]} 13. exf5 {[%clk 0:01:57.8]} 13... e4 {[%clk 0:02:33.4]} 14. Be2 {[%clk
0:01:58.5]} 14... Ne5 {[%clk 0:01:51]} 15. g4 {[%clk 0:01:58.7]} 15... c6 {[%clk
0:01:45.2]} 16. Qd2 {[%clk 0:01:58.3]} 16... d5 {[%clk 0:01:21.3]} 17. O-O-O
{[%clk 0:01:58.1]} 17... Qa5 {[%clk 0:01:06.6]} 18. g5 {[%clk 0:01:40.8]} 18...
Bxf5 {[%clk 0:00:56.6]} 19. gxf6 {[%clk 0:01:40.4]} 19... Bxf6 {[%clk 0:00:57]}
20. Bg5 {[%clk 0:01:23.5]} 20... Bg7 {[%clk 0:00:36.4]} 21. cxd5 {[%clk
0:01:21.4]} 21... Nd3+ {[%clk 0:00:36]} 22. Bxd3 {[%clk 0:01:21.4]} 22... exd3
{[%clk 0:00:36.9]} 23. Bh6 {[%clk 0:01:19.9]} 23... cxd5 {[%clk 0:00:31.8]} 24.
Bxg7 {[%clk 0:01:08.6]} 24... Kxg7 {[%clk 0:00:32.7]} 25. Nf3 {[%clk 0:01:09.3]}
25... Rac8 {[%clk 0:00:29.1]} 26. Rhg1+ {[%clk 0:01:08.4]} 26... Bg6 {[%clk
0:00:26.1]} 27. Qxd3 {[%clk 0:00:38.5]} 27... Qxa2 {[%clk 0:00:25.7]} 28. Nd2
{[%clk 0:00:20.4]} 28... Qa1+ {[%clk 0:00:17]} 29. Nb1 {[%clk 0:00:20.5]} 29...
Rf6 {[%clk 0:00:05.1]} 30. h4 {[%clk 0:00:14.7]} 30... d4 {[%clk 0:00:03.3]} 31.
Rxg6+ {[%clk 0:00:12.8]} 31... hxg6 {[%clk 0:00:02.3]} 32. Qxd4 {[%clk
0:00:13.7]} 32... Rxc3+ {[%clk 0:00:01.5]} 33. Qxc3 {[%clk 0:00:12.7]} 1-0

[Event "*** Titled Tuesday Blitz"]
[Site "Chess.com"]
[Date "2020.04.07"]
[Round "4"]
[White "anon132639"]
[Black "DDTerziev04"]
[Result "1-0"]
[WhiteElo "2622"]
[BlackElo "2252"]
[TimeControl "180+1"]
[EndTime "13:40:42 PDT"]
[Termination "anon132639 won by resignation"]

1. d4 {[%clk 0:03:00.9]} 1... d5 {[%clk 0:02:59.5]} 2. Bf4 {[%clk 0:02:58.2]}
2... Nf6 {[%clk 0:02:56]} 3. e3 {[%clk 0:02:58.5]} 3... c5 {[%clk 0:02:50.7]} 4.
Nf3 {[%clk 0:02:58.6]} 4... Nc6 {[%clk 0:02:47.8]} 5. Nbd2 {[%clk 0:02:58.6]}
5... Bf5 {[%clk 0:02:41.9]} 6. c3 {[%clk 0:02:57.4]} 6... Qb6 {[%clk 0:02:30]}
7. Qb3 {[%clk 0:02:52.8]} 7... c4 {[%clk 0:02:29.3]} 8. Qxb6 {[%clk 0:02:53.2]}
8... axb6 {[%clk 0:02:29]} 9. a3 {[%clk 0:02:54.1]} 9... h6 {[%clk 0:02:19.3]}
10. Be2 {[%clk 0:02:50.2]} 10... e6 {[%clk 0:02:18.7]} 11. O-O {[%clk
0:02:48.2]} 11... b5 {[%clk 0:02:16.8]} 12. Ne5 {[%clk 0:02:41.3]} 12... Be7
{[%clk 0:01:52.1]} 13. g4 {[%clk 0:02:35.4]} 13... Bh7 {[%clk 0:01:50.5]} 14. f3
{[%clk 0:02:34.3]} 14... g5 {[%clk 0:01:49.9]} 15. Bg3 {[%clk 0:02:34.3]} 15...
Nxe5 {[%clk 0:01:47.1]} 16. Bxe5 {[%clk 0:02:32.4]} 16... Rg8 {[%clk 0:01:47.3]}
17. Rae1 {[%clk 0:02:29.9]} 17... Nd7 {[%clk 0:01:46.9]} 18. Bg3 {[%clk
0:02:29.6]} 18... f5 {[%clk 0:01:46.4]} 19. gxf5 {[%clk 0:02:26.4]} 19... exf5
{[%clk 0:01:45.6]} 20. e4 {[%clk 0:02:24.2]} 20... f4 {[%clk 0:01:40.5]} 21. Bf2
{[%clk 0:02:24.6]} 21... Nb6 {[%clk 0:01:36.5]} 22. exd5 {[%clk 0:01:57.6]}
22... Nxd5 {[%clk 0:01:35.9]} 23. Nxc4 {[%clk 0:01:58]} 23... bxc4 {[%clk
0:01:24.3]} 24. Bxc4 {[%clk 0:01:58.9]} 24... Nf6 {[%clk 0:01:15.5]} 25. d5
{[%clk 0:01:44.4]} 25... Kd7 {[%clk 0:01:05.2]} 26. Bb5+ {[%clk 0:01:36.2]}
26... Kd8 {[%clk 0:00:49.9]} 27. Bb6+ {[%clk 0:01:35.3]} 27... Kc8 {[%clk
0:00:49.3]} 28. Rxe7 {[%clk 0:01:33.6]} 28... Nxd5 {[%clk 0:00:49.1]} 29. Rxh7
{[%clk 0:01:23.4]} 29... Nxb6 {[%clk 0:00:48.7]} 30. Re1 {[%clk 0:01:20.9]}
30... Nd5 {[%clk 0:00:34.8]} 31. Re5 {[%clk 0:01:16.1]} 31... Ne3 {[%clk
0:00:29.8]} 32. Ree7 {[%clk 0:01:15.2]} 32... Ra7 {[%clk 0:00:22.3]} 33. Bc6
{[%clk 0:01:11.9]} 33... Kb8 {[%clk 0:00:18]} 34. Rxb7+ {[%clk 0:01:10]} 34...
Rxb7 {[%clk 0:00:17.6]} 35. Rxb7+ {[%clk 0:01:09.3]} 35... Kc8 {[%clk
0:00:17.8]} 36. Ra7 {[%clk 0:01:09.3]} 36... Rd8 {[%clk 0:00:17.6]} 37. Ra8+
{[%clk 0:01:07]} 37... Kc7 {[%clk 0:00:18.1]} 38. Rxd8 {[%clk 0:01:07.9]} 38...
Kxd8 {[%clk 0:00:19]} 39. b4 {[%clk 0:00:58.3]} 39... Kc7 {[%clk 0:00:18]} 40.
Be4 {[%clk 0:00:55.6]} 40... Kb6 {[%clk 0:00:18.1]} 41. a4 {[%clk 0:00:52.7]}
41... Nd1 {[%clk 0:00:16.9]} 42. c4 {[%clk 0:00:52.4]} 42... Nb2 {[%clk
0:00:16.8]} 43. c5+ {[%clk 0:00:43.3]} 43... Ka6 {[%clk 0:00:16.1]} 44. Bc2
{[%clk 0:00:41]} 44... Nc4 {[%clk 0:00:13.5]} 45. Bd3 {[%clk 0:00:40.9]} 1-0

[Event "*** Titled Tuesday Blitz"]
[Site "Chess.com"]
[Date "2020.04.07"]
[Round "4"]
[White "Usurpov"]
[Black "SanQui14"]
[Result "0-1"]
[WhiteElo "2461"]
[BlackElo "2318"]
[TimeControl "180+1"]
[EndTime "13:40:42 PDT"]
[Termination "SanQui14 won by resignation"]

1. e4 {[%clk 0:03:00.9]} 1... e6 {[%clk 0:02:59.3]} 2. d4 {[%clk 0:02:59.6]}
2... d5 {[%clk 0:03:00.2]} 3. e5 {[%clk 0:03:00]} 3... c5 {[%clk 0:03:00.3]} 4.
c3 {[%clk 0:03:00.4]} 4... Nc6 {[%clk 0:03:00.4]} 5. Nf3 {[%clk 0:03:00.5]} 5...
Qb6 {[%clk 0:03:00.4]} 6. a3 {[%clk 0:03:00.5]} 6... Bd7 {[%clk 0:02:59.7]} 7.
b4 {[%clk 0:02:59.7]} 7... cxd4 {[%clk 0:02:59.2]} 8. cxd4 {[%clk 0:03:00.6]}
8... Rc8 {[%clk 0:02:59]} 9. Bb2 {[%clk 0:03:00]} 9... Na5 {[%clk 0:02:52]} 10.
Nbd2 {[%clk 0:02:59.5]} 10... Nc4 {[%clk 0:02:51.3]} 11. Bxc4 {[%clk 0:02:43.4]}
11... dxc4 {[%clk 0:02:52.2]} 12. Rc1 {[%clk 0:02:43.4]} 12... Qa6 {[%clk
0:02:47.8]} 13. O-O {[%clk 0:02:38.9]} 13... Ne7 {[%clk 0:02:47.6]} 14. Ne4
{[%clk 0:02:26.1]} 14... Nd5 {[%clk 0:02:47.9]} 15. Nfg5 {[%clk 0:02:13.7]}
15... Be7 {[%clk 0:02:45.1]} 16. Qh5 {[%clk 0:02:10.5]} 16... g6 {[%clk
0:02:40.2]} 17. Qh6 {[%clk 0:02:05.6]} 17... Bf8 {[%clk 0:02:21.3]} 18. Qh4
{[%clk 0:01:53.7]} 18... h6 {[%clk 0:02:19.5]} 19. Nc5 {[%clk 0:01:34.2]} 19...
Qc6 {[%clk 0:01:50.1]} 20. Rxc4 {[%clk 0:01:13.3]} 20... b6 {[%clk 0:01:44.4]}
21. Nxd7 {[%clk 0:00:53.6]} 21... Qxc4 {[%clk 0:01:44.4]} 22. Nf6+ {[%clk
0:00:49.7]} 22... Nxf6 {[%clk 0:01:39.5]} 23. exf6 {[%clk 0:00:50.6]} 23... Qd5
{[%clk 0:01:30.3]} 24. Nf3 {[%clk 0:00:47.6]} 24... Bd6 {[%clk 0:01:28.4]} 25.
Bc1 {[%clk 0:00:44]} 25... Kd7 {[%clk 0:01:19.5]} 26. Bf4 {[%clk 0:00:36.2]}
26... g5 {[%clk 0:01:13]} 27. Qh5 {[%clk 0:00:36.5]} 27... Bxf4 {[%clk
0:01:03.9]} 28. Qxf7+ {[%clk 0:00:35.8]} 28... Kc6 {[%clk 0:01:01.7]} 29. a4
{[%clk 0:00:24.4]} 29... Rc7 {[%clk 0:00:54.5]} 30. Qg6 {[%clk 0:00:20.2]} 30...
Kb7 {[%clk 0:00:52.1]} 31. h4 {[%clk 0:00:17.3]} 31... Qf5 {[%clk 0:00:44.8]}
32. Qxf5 {[%clk 0:00:15.2]} 32... exf5 {[%clk 0:00:45.7]} 33. hxg5 {[%clk
0:00:15]} 33... hxg5 {[%clk 0:00:45.8]} 34. g3 {[%clk 0:00:15.9]} 34... Bd6
{[%clk 0:00:45.3]} 35. Re1 {[%clk 0:00:14.7]} 35... Rf8 {[%clk 0:00:33.9]} 36.
Re6 {[%clk 0:00:13.1]} 36... Rc6 {[%clk 0:00:29.9]} 37. Nxg5 {[%clk 0:00:12.3]}
37... Bxb4 {[%clk 0:00:30]} 38. d5 {[%clk 0:00:08.1]} 38... Rxe6 {[%clk
0:00:27.2]} 0-1